bitfinex/quotes_ETHUSD_20250213
["timestamp","ask_amount","ask_price","bid_price","bid_amount"]
[1739415567127,29.3391,2737.8,2737.7,0.83214887]
[1739415567128,27.75,2737.8,2737.7,0.83214887]
[1739415567461,33.3,2737.8,2737.7,2.94927322]
[1739415567613,33.3,2737.8,2737.7,2.40464887]
[1739415568743,38.85,2737.8,2737.7,0.265]
[1739415569314,38.85,2737.8,2737.7,4.819]
[1739415569649,38.85,2737.8,2737.7,1.819]
[1739415569801,44.4,2737.8,2737.7,4.819]
[1739415570002,44.4,2737.8,2737.7,4.834]
[1739415570236,44.4,2737.8,2737.7,5.4867]
[1739415570948,44.4,2737.8,2737.7,8.98843221]
[1739415571098,49.95,2737.8,2737.7,12.04343287]
[1739415572350,55.5,2737.8,2737.7,12.30574727]
[1739415572914,55.5,2737.8,2737.7,27.49874727]
[1739415573451,55.5,2737.8,2737.7,25.30874727]
[1739415573750,61.05,2737.8,2737.7,25.30874727]
[1739415574307,61.05,2737.8,2737.7,25.85874727]
[1739415574723,61.05,2737.8,2737.7,52.23065933]
[1739415574724,66.6,2737.8,2737.7,52.23065933]
[1739415575646,66.6,2737.8,2737.7,51.74878498]
[1739415576003,72.15,2737.8,2737.7,51.74878498]
[1739415576209,72.15,2737.8,2737.7,52.49435115]
[1739415577209,77.7,2737.8,2737.7,55.92425686]
[1739415577411,77.7,2737.8,2737.7,55.42252465]
[1739415578964,83.25,2737.8,2737.7,55.42252465]
[1739415579267,83.25,2737.8,2737.7,39.90952465]
[1739415580328,88.8,2737.8,2737.7,39.90952465]
[1739415581910,94.35,2737.8,2737.7,39.90952465]
[1739415583437,99.9,2737.8,2737.7,39.52639834]
[1739415584741,105.45,2737.8,2737.7,39.52639834]
[1739415586278,111.0,2737.8,2737.7,39.52639834]
[1739415587443,116.55,2737.8,2737.7,39.52639834]
[1739415588055,116.55,2737.8,2737.7,52.80113055]
[1739415589040,122.1,2737.8,2737.7,52.80113055]
[1739415590470,127.65,2737.8,2737.7,52.80113055]
[1739415591882,133.2,2737.8,2737.7,52.80113055]
[1739415593296,138.75,2737.8,2737.7,52.80113055]
[1739415593743,138.75,2737.8,2737.7,58.58213055]
[1739415594312,138.75,2737.8,2737.7,58.08039834]
[1739415594615,144.3,2737.8,2737.7,58.08039834]
[1739415595806,149.85,2737.8,2737.7,58.08039834]
[1739415597114,155.4,2737.8,2737.7,58.08039834]
[1739415598290,160.95,2737.8,2737.7,58.08039834]
[1739415600233,166.49134,2737.8,2737.7,58.08039834]
[1739415600826,166.49134,2737.8,2737.7,58.63039834]
[1739415600987,166.49134,2737.8,2737.7,59.13213055]
[1739415601542,172.04134,2737.8,2737.7,59.13213055]
[1739415602383,172.04134,2737.8,2737.7,61.32213055]
[1739415603024,177.59134,2737.8,2737.7,61.32213055]
[1739415604202,183.14134,2737.8,2737.7,61.32213055]
[1739415605384,188.69134,2737.8,2737.7,61.32213055]
[1739415606492,194.24134,2737.8,2737.7,61.32213055]
[1739415606940,194.24134,2737.8,2737.7,65.32213055]
[1739415607695,199.79134,2737.8,2737.7,63.55520086]
[1739415609473,205.34134,2737.8,2737.7,63.55520086]
[1739415610155,205.34134,2737.8,2737.7,59.55520086]
[1739415610358,205.34134,2737.8,2737.7,54.38549263]
[1739415610567,205.34134,2737.8,2737.7,40.32349263]
[1739415610568,210.89134,2737.8,2737.7,40.32349263]
[1739415612070,216.44134,2737.8,2737.7,40.32349263]
[1739415612437,216.44134,2737.8,2737.7,54.14822484]
[1739415612638,216.44134,2737.8,2737.7,55.68772484]
[1739415613205,221.99134,2737.8,2737.7,55.68772484]
[1739415614521,227.54134,2737.8,2737.7,55.68772484]
[1739415615959,233.09134,2737.8,2737.7,55.68772484]
[1739415617067,238.64134,2737.8,2737.7,55.68772484]
[1739415618518,244.19134,2737.8,2737.7,55.68772484]
[1739415619119,244.19134,2737.8,2737.7,53.09649263]
[1739415619350,244.19134,2737.8,2737.7,40.05849263]
[1739415619537,244.19134,2737.8,2737.7,40.32349263]
[1739415619757,249.74134,2737.8,2737.7,40.32349263]
[1739415619930,249.74134,2737.8,2737.7,25.13049263]
[1739415620254,251.37474,2737.8,2737.7,11.32529263]
[1739415620574,251.37474,2737.8,2737.7,14.32529263]
[1739415620745,251.37474,2737.8,2737.7,14.59029263]
[1739415621078,256.92474,2737.8,2737.7,14.59029263]
[1739415621577,256.92474,2737.8,2737.7,13.84472646]
[1739415622209,256.92474,2737.8,2737.7,17.50492646]
[1739415622210,262.47474,2737.8,2737.7,17.50492646]
[1739415622483,260.84134,2737.8,2737.7,30.77965867]
[1739415623181,262.49344,2737.8,2737.7,17.49742646]
[1739415623354,268.04344,2737.8,2737.7,17.49742646]
[1739415623556,265.99028921,2737.8,2737.7,17.49742646]
[1739415624866,271.54028921,2737.8,2737.7,17.49742646]
[1739415626282,277.09028921,2737.8,2737.7,17.49742646]
[1739415627292,282.64028921,2737.8,2737.7,17.49742646]
[1739415628441,288.19028921,2737.8,2737.7,17.49742646]
[1739415629090,291.80489946,2737.8,2737.7,6.046]
[1739415629678,291.80489946,2737.8,2737.7,9.046]
[1739415629861,297.35489946,2737.8,2737.7,9.046]
[1739415631173,302.90489946,2737.8,2737.7,9.046]
[1739415631486,299.29028921,2737.8,2737.7,9.046]
[1739415632207,299.29028921,2737.8,2737.7,9.1152]
[1739415632513,304.84028921,2737.8,2737.7,6.9252]
[1739415633012,304.84028921,2737.8,2737.7,6.9327]
[1739415633212,303.18818921,2737.8,2737.7,10.97973771]
[1739415633914,308.73818921,2737.8,2737.7,38.9137852]
[1739415634220,307.22326671,2737.8,2737.7,38.9137852]
[1739415635116,307.22326671,2737.8,2737.7,50.17353771]
[1739415635269,310.7203153,2737.8,2737.7,26.88136704]
[1739415635466,310.7203153,2737.8,2737.7,27.63443321]
[1739415635876,310.7203153,2737.8,2737.7,12.44143321]
[1739415636618,316.2703153,2737.8,2737.7,25.71616542]
[1739415636821,316.2703153,2737.8,2737.7,26.52279925]
[1739415637194,316.2703153,2737.8,2737.7,36.14279925]
[1739415637950,321.8203153,2737.8,2737.7,51.33579925]
[1739415638284,321.8203153,2737.8,2737.7,52.08136542]
[1739415639249,327.3703153,2737.8,2737.7,52.08136542]
[1739415640504,332.9203153,2737.8,2737.7,52.08136542]
[1739415641965,338.4703153,2737.8,2737.7,52.08136542]
[1739415643307,344.0203153,2737.8,2737.7,52.08136542]
[1739415644870,349.5703153,2737.8,2737.7,52.08136542]
[1739415645005,347.0611301,2737.8,2737.7,52.08136542]
[1739415646259,352.6111301,2737.8,2737.7,52.08136542]
[1739415647465,358.1611301,2737.8,2737.7,52.08136542]
[1739415648105,358.1611301,2737.8,2737.7,51.57963321]
[1739415648545,363.7111301,2737.8,2737.7,51.57963321]
[1739415649955,369.2611301,2737.8,2737.7,51.57963321]
[1739415651051,374.8111301,2737.8,2737.7,51.57963321]
[1739415651366,374.8111301,2737.8,2737.7,57.36063321]
[1739415652466,380.3611301,2737.8,2737.7,57.36063321]
[1739415653568,385.9111301,2737.8,2737.7,55.80843321]
[1739415654491,385.9111301,2737.8,2737.7,42.48543321]
[1739415654873,391.4611301,2737.8,2737.7,42.48543321]
[1739415656073,397.0111301,2737.8,2737.7,42.48543321]
[1739415656250,394.95817771,2737.8,2737.7,42.48543321]
[1739415657378,400.50817771,2737.8,2737.7,42.48543321]
[1739415657883,400.50817771,2737.8,2737.7,55.25843321]
[1739415658494,400.43512502,2737.8,2737.7,55.25843321]
[1739415658654,405.98512502,2737.8,2737.7,55.25843321]
[1739415658993,405.98512502,2737.8,2737.7,40.06543321]
[1739415660012,411.53512502,2737.8,2737.7,40.06543321]
[1739415660906,411.53512502,2737.8,2737.7,55.25843321]
[1739415661431,417.08512502,2737.8,2737.7,55.25843321]
[1739415662712,422.63512502,2737.8,2737.7,55.25843321]
[1739415662911,422.63512502,2737.8,2737.7,40.06543321]
[1739415664358,428.18512502,2737.8,2737.7,40.06543321]
[1739415665603,433.73512502,2737.8,2737.7,40.06543321]
[1739415665835,433.73512502,2737.8,2737.7,34.28443321]
[1739415666786,439.28512502,2737.8,2737.7,34.28443321]
[1739415666991,439.28512502,2737.8,2737.7,49.47743321]
[1739415668166,444.83512502,2737.8,2737.7,49.47743321]
[1739415669550,450.38512502,2737.8,2737.7,49.47743321]
[1739415670991,450.38512502,2737.8,2737.7,34.28443321]
[1739415671190,455.93512502,2737.8,2737.7,34.28443321]
[1739415671681,455.93512502,2737.8,2737.7,35.94758664]
[1739415671840,455.93512502,2737.8,2737.7,51.14058664]
[1739415672481,461.48512502,2737.8,2737.7,51.14058664]
[1739415673589,467.03512502,2737.8,2737.7,51.14058664]
[1739415674898,472.58512502,2737.8,2737.7,51.14058664]
[1739415676060,478.13512502,2737.8,2737.7,51.14058664]
[1739415677410,483.68512502,2737.8,2737.7,51.14058664]
[1739415678515,489.23512502,2737.8,2737.7,51.14058664]
[1739415679369,489.23512502,2737.8,2737.7,51.69058664]
[1739415679805,487.48000502,2737.8,2737.7,51.69058664]
[1739415679972,485.65372502,2737.8,2737.7,51.69058664]
[1739415681604,491.20372502,2737.8,2737.7,51.69058664]
[1739415683414,491.20372502,2737.8,2737.7,48.95058664]
[1739415683916,491.20372502,2737.8,2737.7,36.17758664]
[1739415684417,491.20372502,2737.8,2737.7,48.95058664]
[1739415685074,491.20372502,2737.8,2737.7,48.68558664]
[1739415685276,496.36953527,2737.8,2737.7,27.62693321]
[1739415685507,496.36953527,2737.8,2737.7,27.61943321]
[1739415685977,496.36953527,2737.8,2737.7,8.71030388]
[1739415686595,496.36953527,2737.8,2737.7,11.71030388]
[1739415686789,496.36953527,2737.8,2737.7,10.96473771]
[1739415686991,496.36953527,2737.8,2737.7,10.69973771]
[1739415687191,496.36953527,2737.8,2737.7,4.31203771]
[1739415688015,496.36953527,2737.8,2737.7,4.04703771]
[1739415688219,1.5518,2737.7,2737.6,5.781]
[1739415688420,3.65113781,2737.7,2737.6,6.046]
[1739415688622,5.20293781,2737.7,2737.6,9.046]
[1739415688792,5.20293781,2737.7,2737.6,6.046]
[1739415688994,6.86609124,2737.7,2737.6,6.046]
[1739415689195,6.82956368,2737.7,2737.6,6.046]
[1739415689600,5.16641025,2737.7,2737.6,6.046]
[1739415689793,5.16641025,2737.7,2737.6,0.265]
[1739415690092,5.20293781,2737.7,2737.6,0.265]
[1739415691122,5.16641025,2737.7,2737.6,0.265]
[1739415692726,5.20293781,2737.7,2737.6,0.265]
[1739415693323,5.18853781,2737.7,2737.5,0.57846687]
[1739415693522,3.65113781,2737.7,2737.6,0.265]
[1739415694223,1.5199,2737.6,2737.5,0.57846687]
[1739415694431,1.5199,2737.6,2737.5,0.84346687]
[1739415700806,1.55642756,2737.6,2737.5,0.84346687]
[1739415701023,1.5199,2737.6,2737.5,0.84346687]
[1739415701226,5.13451025,2737.6,2737.5,0.84346687]
[1739415701647,5.17103781,2737.6,2737.5,0.84346687]
[1739415702308,1.5199,2737.6,2737.5,0.84346687]
[1739415702739,1.75642756,2737.6,2737.5,0.84346687]
[1739415703816,1.55642756,2737.6,2737.5,0.84346687]
[1739415705172,1.55642756,2737.6,2737.5,0.57846687]
[1739415705384,1.6602,2736.9,2736.6,0.248]
[1739415705557,0.56791156,2736.8,2736.7,0.265]
[1739415706114,2.22811156,2736.8,2736.7,0.265]
[1739415706309,0.56791156,2736.8,2736.6,0.248]
[1739415706673,1.6602,2736.7,2736.6,0.248]
[1739415706867,1.6602,2736.7,2736.6,0.513]
[1739415707222,0.58818816,2736.7,2736.6,0.513]
[1739415707421,2.19738816,2736.7,2736.6,0.513]
[1739415707731,1.6092,2736.7,2736.6,0.513]
[1739415714160,1.6092,2736.7,2736.6,0.248]
[1739415714663,1.64572756,2736.7,2736.6,0.513]
[1739415727093,5.29975756,2736.7,2736.6,0.513]
[1739415735641,6.96614388,2736.7,2736.6,0.513]
[1739415735938,8.05814927,2736.7,2736.6,0.513]
[1739415736079,4.36759171,2736.7,2736.6,0.513]
[1739415736276,4.40411927,2736.7,2736.6,0.513]
[1739415737236,8.05814927,2736.7,2736.6,0.513]
[1739415737386,8.02162171,2736.7,2736.6,0.513]
[1739415737578,6.35523539,2736.7,2736.6,0.513]
[1739415737781,6.39176295,2736.7,2736.6,0.513]
[1739415742036,0.2,2737.1,2736.6,2.102]
[1739415742182,0.2,2736.9,2736.6,0.513]
[1739415742381,1.58362756,2736.8,2736.6,0.513]
[1739415742593,2.12737532,2736.8,2736.6,0.513]
[1739415742819,5.33759756,2736.8,2736.6,0.513]
[1739415743022,3.65403,2736.7,2736.6,0.513]
[1739415743524,3.69055756,2736.7,2736.6,0.513]
[1739415744104,3.69055756,2736.7,2736.6,0.248]
[1739415744413,5.30145756,2736.7,2736.6,0.513]
[1739415744584,6.22700032,2736.7,2736.6,0.513]
[1739415745080,10.21376873,2736.7,2736.6,0.248]
[1739415745439,10.37724117,2736.7,2736.6,0.513]
[1739415747104,10.37724117,2736.7,2736.6,0.248]
[1739415747312,6.94047276,2736.7,2736.6,0.248]
[1739415747508,6.97700032,2736.7,2736.6,0.248]
[1739415752311,1.84742756,2736.7,2736.6,0.248]
[1739415752861,0.23652756,2736.7,2736.6,0.248]
[1739415753029,0.2,2736.8,2736.6,0.248]
[1739415753557,0.23652756,2736.8,2736.6,0.248]
[1739415754456,3.89048756,2736.8,2736.6,0.248]
[1739415754949,4.65492432,2736.8,2736.6,0.248]
[1739415755444,0.23652756,2736.8,2736.6,0.248]
[1739415756481,5.22713,2736.7,2736.6,0.248]
[1739415757787,5.22713,2736.7,2736.6,0.513]
[1739415758899,5.26365756,2736.7,2736.6,0.513]
[1739415759702,5.83575756,2736.7,2736.6,0.513]
[1739415759894,7.15840016,2736.7,2736.6,0.513]
[1739415761711,1.35917016,2736.7,2736.6,0.513]
[1739415761877,7.39068841,2736.8,2736.6,0.513]
[1739415762407,0.3,2736.8,2736.6,0.513]
[1739415763210,3.69055756,2736.7,2736.6,0.513]
[1739415764772,0.03652756,2736.7,2736.6,0.513]
[1739415765158,3.69055756,2736.7,2736.6,0.513]
[1739415765515,4.61453432,2736.7,2736.6,0.513]
[1739415766595,0.96050432,2736.7,2736.6,0.513]
[1739415766761,4.61453432,2736.7,2736.6,0.513]
[1739415767568,0.96050432,2736.7,2736.6,0.513]
[1739415767901,0.03652756,2736.7,2736.6,0.513]
[1739415770064,3.69055756,2736.7,2736.6,0.513]
[1739415770488,0.03652756,2736.7,2736.6,0.513]
[1739415772504,3.69055756,2736.7,2736.6,0.513]
[1739415774280,0.03652756,2736.7,2736.6,0.513]
[1739415775280,4.44499932,2736.7,2736.6,0.513]
[1739415775603,6.17669932,2736.7,2736.6,0.248]
[1739415775806,6.17669932,2736.7,2736.6,0.513]
[1739415776311,6.17669932,2736.7,2736.6,0.248]
[1739415776810,6.17669932,2736.7,2736.6,0.513]
[1739415778422,6.72669932,2736.7,2736.6,0.513]
[1739415778602,6.61707624,2736.7,2736.6,0.513]
[1739415779728,8.28385343,2736.7,2736.6,0.513]
[1739415780650,8.28385343,2736.7,2736.6,0.248]
[1739415780783,8.21695343,2736.7,2736.6,0.248]
[1739415781446,8.21695343,2736.7,2736.6,0.062]
[1739415782522,8.20945343,2736.7,2736.6,0.062]
[1739415783084,6.54267624,2736.7,2736.6,0.062]
[1739415784915,4.98537624,2736.7,2736.6,0.062]
[1739415790716,0.68134624,2736.7,2736.6,0.062]
[1739415790919,3.65403,2736.7,2736.6,0.062]
[1739415792119,3.85402,2736.8,2736.6,0.062]
[1739415792340,0.2,2736.8,2736.6,0.062]
[1739415793214,3.85392,2736.8,2736.6,0.062]
[1739415793396,3.65403,2736.7,2736.6,0.062]
[1739415793598,3.8539,2736.8,2736.6,0.062]
[1739415795840,0.2,2736.8,2736.6,0.062]
[1739415799662,3.8539,2736.8,2736.6,0.062]
[1739415799806,4.604655,2736.8,2736.6,0.062]
[1739415800212,8.258665,2736.8,2736.6,0.062]
[1739415800523,4.604655,2736.8,2736.7,0.265]
[1739415800741,0.950755,2736.8,2736.7,0.265]
[1739415801061,0.2,2736.8,2736.7,0.265]
[1739415803109,3.8539,2736.8,2736.7,0.265]
[1739415803312,0.2,2736.8,2736.7,0.265]
[1739415806129,0.2,2736.8,2736.7,0.265]
[1739415806631,3.8537,2737.0,2736.7,0.265]
[1739415807335,0.2,2737.0,2736.7,0.265]
[1739415809724,1.86614047,2737.0,2736.7,0.265]
[1739415810153,5.51978047,2737.0,2736.7,0.265]
[1739415811987,6.46569357,2737.0,2736.7,0.265]
[1739415812984,3.65377,2736.9,2736.7,0.265]
[1739415815334,6.46572357,2737.0,2736.7,0.265]
[1739415815779,3.65377,2736.9,2736.7,0.265]
[1739415815937,0.1,2737.4,2736.8,1.5376]
[1739415816139,1.66614047,2737.6,2737.2,1.5376]
[1739415816343,5.28075072,2737.6,2737.2,1.5376]
[1739415816627,1.66614047,2737.4,2737.2,1.5376]
[1739415816820,5.29,2737.7,2737.2,1.5376]
[1739415817104,492.86986549,2737.8,2737.6,1.5376]
[1739415817408,496.3819746,2737.8,2737.7,0.265]
[1739415817564,494.71583413,2737.8,2737.7,0.265]
[1739415818006,491.20372502,2737.8,2737.7,0.265]
[1739415818166,491.20372502,2737.8,2737.7,6.9177]
[1739415818373,491.20372502,2737.8,2737.7,8.5193]
[1739415819063,491.20372502,2737.8,2737.7,8.5268]
[1739415820685,491.20372502,2737.8,2737.7,11.96093553]
[1739415820896,491.20372502,2737.8,2737.7,11.96843553]
[1739415821438,487.62232502,2737.8,2737.7,16.01547324]
[1739415822121,487.62232502,2737.8,2737.7,31.20847324]
[1739415822577,482.14348502,2737.8,2737.7,31.20847324]
[1739415822778,478.65060502,2737.8,2737.7,30.12207324]
[1739415822978,484.20060502,2737.8,2737.7,30.57318528]
[1739415823374,478.72176502,2737.8,2737.7,30.57318528]
[1739415823601,475.06920502,2737.8,2737.7,30.57318528]
[1739415823973,475.06920502,2737.8,2737.7,30.12207324]
[1739415824631,476.96664502,2737.8,2737.7,30.12207324]
[1739415825214,473.31408502,2737.8,2737.7,30.12207324]
[1739415825415,469.66152502,2737.8,2737.7,30.12207324]
[1739415825737,469.73268502,2737.8,2737.7,30.12207324]
[1739415826315,467.90640502,2737.8,2737.7,30.12207324]
[1739415826473,461.12077935,2737.8,2737.7,29.60687324]
[1739415826673,459.29449935,2737.8,2737.7,29.60687324]
[1739415826932,464.84449935,2737.8,2737.7,29.60687324]
[1739415828394,461.26309935,2737.8,2737.7,42.92987324]
[1739415828575,457.02649935,2737.8,2737.7,42.92987324]
[1739415828897,457.02649935,2737.8,2737.7,11.41287324]
[1739415829098,457.02649935,2737.8,2737.7,14.41287324]
[1739415829583,462.57649935,2737.8,2737.7,14.41287324]
[1739415830918,468.12649935,2737.8,2737.7,14.41287324]
[1739415832022,473.67649935,2737.8,2737.7,14.41287324]
[1739415832184,473.67649935,2737.8,2737.7,14.14137324]
[1739415832376,473.67649935,2737.8,2737.7,4.31103771]
[1739415833118,473.67649935,2737.8,2737.7,7.31103771]
[1739415833319,482.8411096,2737.8,2737.4,3.65305]
[1739415833522,484.3918096,2737.8,2737.5,0.264]
[1739415834530,489.6918096,2737.8,2737.5,0.264]
[1739415835818,495.2418096,2737.8,2737.5,0.264]
[1739415837880,495.2418096,2737.8,2737.6,0.264]
[1739415838276,495.2418096,2737.8,2737.6,3.264]
[1739415838935,491.62719935,2737.8,2737.6,3.264]
[1739415839219,490.07649935,2737.8,2737.7,3.6527]
[1739415839422,490.07649935,2737.8,2737.6,3.91683]
[1739415839628,490.07649935,2737.8,2737.6,0.264]
[1739415840907,490.07649935,2737.8,2737.6,3.264]
[1739415841994,490.07649935,2737.8,2737.6,3.91675]
[1739415842200,490.07649935,2737.8,2737.7,3.6527]
[1739415842728,490.07649935,2737.8,2737.7,6.6527]
[1739415842957,490.07649935,2737.8,2737.7,3.0]
[1739415843260,490.07649935,2737.8,2737.7,6.6527]
[1739415843915,490.07649935,2737.8,2737.7,6.6602]
[1739415844575,490.07649935,2737.8,2737.7,10.09433553]
[1739415846675,490.07649935,2737.8,2737.7,10.10183553]
[1739415846880,486.49509935,2737.8,2737.7,36.54487324]
[1739415847018,486.49509935,2737.8,2737.7,55.61178066]
[1739415847213,481.01625935,2737.8,2737.7,55.61178066]
[1739415847454,481.01625935,2737.8,2737.7,60.78885492]
[1739415848120,486.56625935,2737.8,2737.7,60.78885492]
[1739415848537,482.91369935,2737.8,2737.7,60.78885492]
[1739415848831,481.08741935,2737.8,2737.7,57.35471939]
[1739415849036,479.26113935,2737.8,2737.7,58.10908885]
[1739415849432,479.33229935,2737.8,2737.7,55.91608885]
[1739415850020,479.33229935,2737.8,2737.7,55.02520492]
[1739415850222,479.33229935,2737.8,2737.7,51.02520492]
[1739415850431,479.33229935,2737.8,2737.7,37.70220492]
[1739415850629,484.88229935,2737.8,2737.7,37.96620492]
[1739415850955,484.88229935,2737.8,2737.7,22.77320492]
[1739415851471,484.88229935,2737.8,2737.7,22.01883546]
[1739415851974,490.43229935,2737.8,2737.7,21.75483546]
[1739415852172,490.43229935,2737.8,2737.7,15.13883546]
[1739415853431,490.43229935,2737.8,2737.7,7.97123771]
[1739415853889,490.43229935,2737.8,2737.7,10.97123771]
[1739415856872,490.43229935,2737.8,2737.7,7.31853771]
[1739415857085,490.43229935,2737.8,2737.7,10.97123771]
[1739415858584,490.43229935,2737.8,2737.7,14.40537324]
[1739415858752,490.43229935,2737.8,2737.7,14.41287324]
[1739415859791,488.37905635,2737.8,2737.7,49.41287324]
[1739415859932,493.92905635,2737.8,2737.7,64.60587324]
[1739415860359,493.92905635,2737.8,2737.7,29.60587324]
[1739415860758,486.62393635,2737.8,2737.7,29.60587324]
[1739415860962,484.79765635,2737.8,2737.7,29.60587324]
[1739415861140,490.34765635,2737.8,2737.7,36.48587324]
[1739415863082,490.34765635,2737.8,2737.7,37.2402427]
[1739415863787,490.34765635,2737.8,2737.7,36.9762427]
[1739415864092,490.34765635,2737.8,2737.7,21.7832427]
[1739415864594,490.34765635,2737.8,2737.7,22.0472427]
[1739415865487,490.34765635,2737.8,2737.7,21.29287324]
[1739415866043,490.34765635,2737.8,2737.7,21.02137324]
[1739415866243,490.34765635,2737.8,2737.7,21.28537324]
[1739415867167,490.34765635,2737.8,2737.7,14.40537324]
[1739415873379,493.84434496,2737.8,2737.7,7.31853771]
[1739415873967,493.84434496,2737.8,2737.7,10.97123771]
[1739415877693,493.84434496,2737.8,2737.7,7.04703771]
[1739415877892,497.45895521,2737.8,2737.7,7.31103771]
[1739415878454,497.45895521,2737.8,2737.7,7.04703771]
[1739415878656,497.45895521,2737.8,2737.7,7.31103771]
[1739415878885,497.45895521,2737.8,2737.7,3.264]
[1739415879199,497.45895521,2737.8,2737.7,6.9167]
[1739415879495,493.84434496,2737.8,2737.7,6.9167]
[1739415881703,493.84434496,2737.8,2737.7,3.264]
[1739415881902,495.39174496,2737.8,2737.7,3.264]
[1739415890433,495.39174496,2737.8,2737.7,6.9167]
[1739415890610,495.39174496,2737.8,2737.7,3.264]
[1739415890808,497.89087105,2737.8,2737.7,3.264]
[1739415903586,495.39174496,2737.8,2737.7,3.264]
[1739415904185,495.39174496,2737.8,2737.7,6.9167]
[1739415904487,495.39174496,2737.8,2737.7,3.264]
[1739415905295,495.39174496,2737.8,2737.7,6.9167]
[1739415906805,495.39174496,2737.8,2737.7,3.264]
[1739415908608,493.84434496,2737.8,2737.7,3.264]
[1739415908807,493.84434496,2737.8,2737.7,6.9167]
[1739415914794,493.84434496,2737.8,2737.7,14.41287324]
[1739415915008,493.84434496,2737.8,2737.7,14.85264513]
[1739415916019,493.84434496,2737.8,2737.7,14.41287324]
[1739415917234,493.84434496,2737.8,2737.7,15.14366788]
[1739415917798,493.84434496,2737.8,2737.7,27.91666788]
[1739415918714,493.84434496,2737.8,2737.7,30.10966788]
[1739415918915,493.84434496,2737.8,2737.7,45.30266788]
[1739415920245,417.16269419,2737.8,2737.7,57.36094476]
[1739415920448,417.16269419,2737.8,2737.7,57.8120568]
[1739415920942,417.16269419,2737.8,2737.7,57.36094476]
[1739415921146,417.16269419,2737.8,2737.7,53.92680923]
[1739415921294,415.33641419,2737.8,2737.7,57.36094476]
[1739415921497,417.23385419,2737.8,2737.7,57.36094476]
[1739415921696,413.58129419,2737.8,2737.7,53.92680923]
[1739415922264,413.58129419,2737.8,2737.7,40.16403734]
[1739415922634,413.58129419,2737.8,2737.7,37.97103734]
[1739415922635,419.13129419,2737.8,2737.7,37.97103734]
[1739415923620,419.13129419,2737.8,2737.7,31.09103734]
[1739415924119,424.68129419,2737.8,2737.7,31.09103734]
[1739415924575,422.85501419,2737.8,2737.7,31.09103734]
[1739415924871,415.54989419,2737.8,2737.7,46.60703734]
[1739415925679,411.89733419,2737.8,2737.7,45.85266788]
[1739415925846,413.79477419,2737.8,2737.7,45.85266788]
[1739415926045,411.22649419,2737.8,2737.7,45.85266788]
[1739415926376,403.92137419,2737.8,2737.7,45.85266788]
[1739415926577,402.09509419,2737.8,2737.7,45.85266788]
[1739415927023,407.64509419,2737.8,2737.7,51.63466788]
[1739415927219,407.64509419,2737.8,2737.7,52.38903734]
[1739415927466,407.64509419,2737.8,2737.7,87.38903734]
[1739415928178,402.16625419,2737.8,2737.7,87.38903734]
[1739415928364,402.23741419,2737.8,2737.7,87.38903734]
[1739415928878,402.23741419,2737.8,2737.7,52.38903734]
[1739415929427,402.23741419,2737.8,2737.7,59.26903734]
[1739415929665,407.78741419,2737.8,2737.7,59.26903734]
[1739415931084,413.33741419,2737.8,2737.7,59.26903734]
[1739415931676,413.33741419,2737.8,2737.7,43.75303734]
[1739415932382,418.98824012,2737.8,2737.7,43.75303734]
[1739415933883,424.53824012,2737.8,2737.7,43.75303734]
[1739415935292,430.08824012,2737.8,2737.7,43.75303734]
[1739415935589,430.08824012,2737.8,2737.7,36.87303734]
[1739415936742,435.63824012,2737.8,2737.7,36.87303734]
[1739415937283,435.63824012,2737.8,2737.7,49.64603734]
[1739415937769,433.81196012,2737.8,2737.7,49.64603734]
[1739415937968,439.36196012,2737.8,2737.7,52.38903734]
[1739415939376,444.91196012,2737.8,2737.7,52.38903734]
[1739415941088,450.46196012,2737.8,2737.7,52.38903734]
[1739415941393,450.46196012,2737.8,2737.7,59.26903734]
[1739415942241,456.01196012,2737.8,2737.7,59.26903734]
[1739415942592,446.88056012,2737.8,2737.7,59.26903734]
[1739415943300,444.82771242,2737.8,2737.7,59.26903734]
[1739415943452,441.24631242,2737.8,2737.7,59.26903734]
[1739415944643,446.79631242,2737.8,2737.7,59.26903734]
[1739415946692,452.34631242,2737.8,2737.7,59.26903734]
[1739415948000,457.89631242,2737.8,2737.7,59.26903734]
[1739415949165,463.44631242,2737.8,2737.7,59.26903734]
[1739415950488,468.99631242,2737.8,2737.7,59.26903734]
[1739415951840,468.99631242,2737.8,2737.7,57.49798295]
[1739415952000,474.54631242,2737.8,2737.7,57.49798295]
[1739415952699,470.89375242,2737.8,2737.7,57.49798295]
[1739415953805,474.39090525,2737.8,2737.7,57.49798295]
[1739415954300,463.79929012,2737.8,2737.7,57.49798295]
[1739415954500,461.59888012,2737.8,2737.7,57.93775484]
[1739415954794,452.13541007,2737.8,2737.7,57.93775484]
[1739415954964,457.68541007,2737.8,2737.7,92.93775484]
[1739415955294,448.55401007,2737.8,2737.7,96.93775484]
[1739415955656,448.55401007,2737.8,2737.7,97.13775484]
[1739415956057,452.46180177,2737.8,2737.7,97.13775484]
[1739415956609,443.33040177,2737.8,2737.7,97.13775484]
[1739415956769,442.55140177,2737.8,2737.7,97.13775484]
[1739415957501,444.44884177,2737.8,2737.7,97.13775484]
[1739415957812,442.62256177,2737.8,2737.7,102.33245688]
[1739415957987,440.79628177,2737.8,2737.7,102.33245688]
[1739415958166,437.14372177,2737.8,2737.7,101.57808742]
[1739415958372,431.66488177,2737.8,2737.7,101.57808742]
[1739415958573,433.96360177,2737.8,2737.7,101.57808742]
[1739415959206,432.13732177,2737.8,2737.7,101.57808742]
[1739415959356,428.48476177,2737.8,2737.7,101.57808742]
[1739415959890,431.98206155,2737.8,2737.7,101.57808742]
[1739415960404,419.0202297,2737.8,2737.7,101.57808742]
[1739415960774,419.0202297,2737.8,2737.7,98.14919583]
[1739415961207,417.1939497,2737.8,2737.7,98.14919583]
[1739415961412,417.2651097,2737.8,2737.7,101.57808742]
[1739415961558,415.4388297,2737.8,2737.7,101.57808742]
[1739415961760,412.93012723,2737.8,2737.7,101.57808742]
[1739415962304,411.10384723,2737.8,2737.7,101.57808742]
[1739415962492,414.82756723,2737.8,2737.7,101.57808742]
[1739415962688,411.17500723,2737.8,2737.7,98.14919583]
[1739415962879,409.34872723,2737.8,2737.7,98.14919583]
[1739415963498,409.34872723,2737.8,2737.7,101.57808742]
[1739415963701,414.89872723,2737.8,2737.7,98.14919583]